[Event "11th LCC Rapid 2019"]
[Site "London"]
[Date "2019.12.07"]
[Round "4.25"]
[White "Jain, Gautam"]
[Black "Trivedi, Aarnavh"]
[Result "1-0"]
[WhiteElo "1900"]
[BlackElo "1761"]
[PlyCount "115"]
[EventDate "2019.12.08"]
[EventType "swiss"]
[EventCountry "ENG"]
[TimeControl "15+10"]
[WhiteClock "0:04:31"]
[BlackClock "0:01:45"]

1. e4 {[%emt 0:00:00]} c6 {[%emt 0:00:00]} 2. d4 {[%emt 0:00:00]} d5 {[%emt 0:00:00]} 3. Nd2 {[%emt 0:00:00]} dxe4 {[%emt 0:00:00]} 4. Nxe4 {[%emt 0:00:00]} Bf5 {[%emt 0:00:00]} 5. Ng3 {[%emt 0:00:00]} Bg6 {[%emt 0:00:00]} 6. h4 {[%emt 0:00:00]} h6 {[%emt 0:00:00]} 7. Nh3 {[%emt 0:00:00]} e6 {[%emt 0:00:00]} 8. Nf4 {[%emt 0:00:00]} Bh7 {[%emt 0:00:00]} 9. Be3 {[%emt 0:00:00]} Bd6 {[%emt 0:00:00]} 10. Bc4 {[%emt 0:00:00]} Nf6 {[%emt 0:00:00]} 11. Ngh5 {[%emt 0:00:00]} Bxf4 {[%emt 0:00:00]} 12. Nxf4 {[%emt 0:00:00]} Nbd7 {[%emt 0:00:00]} 13. Bd3 {[%emt 0:00:00]} Bxd3 {[%emt 0:00:00]} 14. Nxd3 {[%emt 0:00:00]} Qe7 {[%emt 0:00:00]} 15. Qd2 {[%emt 0:00:00]} a5 {[%emt 0:00:00]} 16. c4 {[%emt 0:00:00]} a4 {[%emt 0:00:00]} 17. Qc2 {[%emt 0:00:00]} e5 {[%emt 0:00:00]} 18. dxe5 {[%emt 0:00:00]} Nxe5 {[%emt 0:00:00]} 19. O-O-O {[%emt 0:00:00]} a3 {[%emt 0:00:00]} 20. b3 {[%emt 0:00:00]} O-O {[%emt 0:00:00]} 21. Rhe1 {[%emt 0:00:00]} Nxd3+ {[%emt 0:00:00]} 22. Qxd3 {[%emt 0:00:00]} Rfd8 {[%emt 0:00:00]} 23. Bd4 {[%emt 0:00:00]} Qd6 {[%emt 0:00:00]} 24. Qf3 {[%emt 0:00:00]} c5 {[%emt 0:00:00]} 25. Bxf6 {[%emt 0:00:00]} Qxf6 {[%emt 0:00:00]} 26. Qxf6 {[%emt 0:00:00]} gxf6 {[%emt 0:00:00]} 27. Re7 {[%emt 0:00:00]} Rxd1+ {[%emt 0:00:00]} 28. Kxd1 {[%emt 0:00:00]} b6 {[%emt 0:00:00]} 29. Rb7 {[%emt 0:01:51]} Ra6 {[%emt 0:00:00]} 30. Kd2 {[%emt 0:00:10]} Kg7 {[%emt 0:00:00]} 31. Ke3 {[%emt 0:00:13]} f5 {[%emt 0:00:00]} 32. Kf4 {[%emt 0:00:05]} Kf6 {[%emt 0:00:00]} 33. Rb8 {[%emt 0:00:11]} h5 {[%emt 0:00:00]} 34. f3 {[%emt 0:00:29]} Ke6 {[%emt 0:00:25]} 35. Kg5 {[%emt 0:00:01]} f6+ {[%emt 0:00:06]} 36. Kxh5 {[%emt 0:00:05]} Ke5 {[%emt 0:00:19]} 37. Kg6 {[%emt 0:00:05]} b5 {[%emt 0:00:06]} 38. Rxb5 {[%emt 0:00:18]} Kd4 {[%emt 0:00:11]} 39. Kxf5 {[%emt 0:00:16]} Kc3 {[%emt 0:00:02]} 40. Rxc5 {[%emt 0:00:12]} Kb2 {[%emt 0:00:01]} 41. b4 {[%emt 0:01:02]} Kxa2 {[%emt 0:00:04]} 42. b5 {[%emt 0:00:11]} Rd6 {[%emt 0:00:49]} 43. Rc8 {[%emt 0:00:45]} Kb2 {[%emt 0:00:49]} 44. c5 {[%emt 0:00:05]} Rd3 {[%emt 0:00:15]} 45. Ra8 {[%emt 0:00:16]} Rd5+ {[%emt 0:00:18]} 46. Kxf6 {[%emt 0:00:03]} Rxc5 {[%emt 0:00:02]} 47. g4 {[%emt 0:00:17]} Rxb5 {[%emt 0:00:01]} 48. f4 {[%emt 0:00:12]} Kb3 {[%emt 0:00:40]} 49. f5 {[%emt 0:00:05]} Rb6+ {[%emt 0:00:09]} 50. Kg5 {[%emt 0:00:07]} Rc6 {[%emt 0:00:17]} 51. f6 {[%emt 0:00:24]} Rc5+ {[%emt 0:00:03]} 52. Kg6 {[%emt 0:00:05]} Rc6 {[%emt 0:00:06]} 53. g5 {[%emt 0:00:07]} Rb6 {[%emt 0:00:21]} 54. h5 {[%emt 0:00:06]} a2 {[%emt 0:00:04]} 55. h6 {[%emt 0:00:13]} Rb4 {[%emt 0:00:03]} 56. Rxa2 {[%emt 0:00:03]} Kxa2 {[%emt 0:00:02]} 57. h7 {[%emt 0:00:09]} Rh4 {[%emt 0:00:01]} 58. f7 {[%emt 0:00:04]} 1-0

[Event "11th LCC Rapid 2019"]
[Site "London"]
[Date "2019.12.07"]
[Round "4.26"]
[White "Kirupakaran, Vishnu"]
[Black "Watson, Mikey J"]
[Result "1/2-1/2"]
[WhiteElo "1871"]
[BlackElo "1973"]
[PlyCount "62"]
[EventDate "2019.12.08"]
[EventType "swiss"]
[EventCountry "ENG"]
[TimeControl "15+10"]
[WhiteClock "0:00:27"]
[BlackClock "0:00:11"]

1. e4 {[%emt 0:00:00]} c6 {[%emt 0:00:00]} 2. d4 {[%emt 0:00:00]} d5 {[%emt 0:00:00]} 3. e5 {[%emt 0:00:00]} Bf5 {[%emt 0:00:00]} 4. h4 {[%emt 0:00:00]} h5 {[%emt 0:00:00]} 5. Bd3 {[%emt 0:00:00]} Bxd3 {[%emt 0:00:00]} 6. Qxd3 {[%emt 0:00:00]} e6 {[%emt 0:00:00]} 7. Bg5 {[%emt 0:00:00]} Be7 {[%emt 0:00:00]} 8. Nf3 {[%emt 0:00:00]} Nd7 {[%emt 0:00:00]} 9. Nbd2 {[%emt 0:00:00]} Bxg5 {[%emt 0:00:00]} 10. Nxg5 {[%emt 0:00:00]} Qe7 {[%emt 0:00:00]} 11. c4 {[%emt 0:00:00]} Nh6 {[%emt 0:00:00]} 12. O-O {[%emt 0:00:00]} Nf5 {[%emt 0:00:00]} 13. g3 {[%emt 0:00:00]} O-O {[%emt 0:00:00]} 14. Rad1 {[%emt 0:00:00]} Rfd8 {[%emt 0:00:00]} 15. Ndf3 {[%emt 0:00:00]} Nf8 {[%emt 0:00:00]} 16. Qe2 {[%emt 0:00:00]} Rac8 {[%emt 0:00:00]} 17. a3 {[%emt 0:00:00]} dxc4 {[%emt 0:00:00]} 18. Qxc4 {[%emt 0:00:00]} Rd5 {[%emt 0:00:00]} 19. Ne4 {[%emt 0:00:00]} Rcd8 {[%emt 0:00:00]} 20. Nc3 {[%emt 0:00:00]} R5d7 {[%emt 0:00:00]} 21. Ne4 {[%emt 0:00:00]} Ng6 {[%emt 0:00:00]} 22. Nc5 {[%emt 0:00:00]} Rd5 {[%emt 0:00:00]} 23. Ne4 {[%emt 0:00:00]} Qc7 {[%emt 0:00:00]} 24. Nc3 {[%emt 0:00:25]} R5d7 {[%emt 0:00:00]} 25. b4 {[%emt 0:00:51]} Qb6 {[%emt 0:00:00]} 26. Ne2 {[%emt 0:02:00]} a5 {[%emt 0:00:27]} 27. Rd2 {[%emt 0:00:48]} axb4 {[%emt 0:00:52]} 28. axb4 {[%emt 0:00:02]} Ra8 {[%emt 0:00:39]} 29. Ng5 {[%emt 0:00:21]} Qa6 {[%emt 0:01:22]} 30. Qc3 {[%emt 0:00:35]} Qa3 {[%emt 0:00:49]} 31. Qc4 {[%emt 0:00:12]} Qa6 {[%emt 0:00:49]} 1/2-1/2

[Event "11th LCC Rapid 2019"]
[Site "London"]
[Date "2019.12.07"]
[Round "4.28"]
[White "Chakanyuka, Charles"]
[Black "Tombolis, Christopher"]
[Result "0-1"]
[WhiteElo "1995"]
[BlackElo "1875"]
[PlyCount "204"]
[EventDate "2019.12.08"]
[EventType "swiss"]
[EventCountry "ENG"]
[TimeControl "15+10"]
[WhiteClock "0:13:01"]
[BlackClock "0:00:24"]

1. c4 {[%emt 0:00:00]} Nf6 {[%emt 0:00:00]} 2. Nc3 {[%emt 0:00:00]} d5 {[%emt 0:00:00]} 3. cxd5 {[%emt 0:00:00]} Nxd5 {[%emt 0:00:00]} 4. Nf3 {[%emt 0:00:00]} g6 {[%emt 0:00:00]} 5. g3 {[%emt 0:00:00]} Bg7 {[%emt 0:00:00]} 6. Bg2 {[%emt 0:00:00]} c6 {[%emt 0:00:00]} 7. O-O {[%emt 0:00:00]} O-O {[%emt 0:00:00]} 8. e4 {[%emt 0:00:00]} Nxc3 {[%emt 0:00:00]} 9. bxc3 {[%emt 0:00:00]} Bg4 {[%emt 0:00:00]} 10. d4 {[%emt 0:00:00]} c5 {[%emt 0:00:00]} 11. Bb2 {[%emt 0:00:00]} cxd4 {[%emt 0:00:00]} 12. cxd4 {[%emt 0:00:00]} Nc6 {[%emt 0:00:00]} 13. e5 {[%emt 0:00:00]} e6 {[%emt 0:00:00]} 14. h3 {[%emt 0:00:00]} Bf5 {[%emt 0:00:00]} 15. Nh4 {[%emt 0:00:00]} Qb6 {[%emt 0:00:00]} 16. Ba3 {[%emt 0:00:00]} Rfd8 {[%emt 0:00:00]} 17. Bc5 {[%emt 0:00:00]} Qa5 {[%emt 0:00:00]} 18. Nxf5 gxf5 {[%emt 0:00:00]} 19. Bxc6 {[%emt 0:00:00]} bxc6 {[%emt 0:00:00]} 20. Qf3 {[%emt 0:00:00]} Rd5 {[%emt 0:00:00]} 21. Rfc1 {[%emt 0:00:00]} Bxe5 {[%emt 0:00:00]} 22. dxe5 {[%emt 0:00:00]} Rxc5 {[%emt 0:00:00]} 23. Rxc5 {[%emt 0:00:00]} Qxc5 {[%emt 0:00:00]} 24. Qf4 {[%emt 0:00:00]} Qe7 {[%emt 0:00:00]} 25. Rc1 {[%emt 0:00:00]} Rc8 {[%emt 0:00:00]} 26. h4 {[%emt 0:00:00]} Kg7 {[%emt 0:00:00]} 27. h5 {[%emt 0:00:00]} h6 {[%emt 0:00:00]} 28. Rc3 {[%emt 0:00:00]} Qg5 {[%emt 0:00:00]} 29. Qa4 {[%emt 0:00:00]} Qd2 {[%emt 0:00:00]} 30. Re3 {[%emt 0:00:00]} a5 {[%emt 0:00:00]} 31. Qb3 {[%emt 0:00:00]} c5 {[%emt 0:00:00]} 32. Qb7 {[%emt 0:00:00]} Qd1+ {[%emt 0:00:00]} 33. Kh2 {[%emt 0:00:00]} Qxh5+ {[%emt 0:00:00]} 34. Kg2 {[%emt 0:00:00]} Rd8 {[%emt 0:00:00]} 35. Qf3 {[%emt 0:00:00]} Qxf3+ {[%emt 0:00:00]} 36. Rxf3 {[%emt 0:00:00]} Rd5 {[%emt 0:00:00]} 37. Ra3 {[%emt 0:00:00]} c4 {[%emt 0:00:00]} 38. f4 {[%emt 0:00:00]} c3 {[%emt 0:00:00]} 39. Rxc3 {[%emt 0:00:00]} Rd2+ {[%emt 0:00:00]} 40. Kh3 {[%emt 0:00:16]} Rxa2 {[%emt 0:00:00]} 41. Rc8 {[%emt 0:00:03]} a4 {[%emt 0:00:00]} 42. Ra8 {[%emt 0:00:01]} a3 {[%emt 0:00:00]} 43. Ra7 {[%emt 0:00:10]} Ra1 {[%emt 0:00:00]} 44. Kg2 {[%emt 0:00:13]} Kg6 {[%emt 0:00:00]} 45. Ra8 {[%emt 0:00:02]} a2 {[%emt 0:00:00]} 46. Rg8+ {[%emt 0:00:16]} Kh7 {[%emt 0:00:00]} 47. Ra8 {[%emt 0:00:02]} Kg7 {[%emt 0:00:00]} 48. Kh2 {[%emt 0:00:11]} f6 {[%emt 0:00:00]} 49. Ra7+ {[%emt 0:00:37]} Kg6 {[%emt 0:00:00]} 50. exf6 {[%emt 0:00:04]} Kxf6 {[%emt 0:00:00]} 51. Ra6 {[%emt 0:00:03]} Ke7 {[%emt 0:00:00]} 52. Kg2 {[%emt 0:00:09]} Kd7 {[%emt 0:00:00]} 53. Kh2 {[%emt 0:00:09]} Kc7 {[%emt 0:00:00]} 54. Kg2 {[%emt 0:00:09]} Kb7 {[%emt 0:00:00]} 55. Ra3 {[%emt 0:00:03]} Kb6 {[%emt 0:00:00]} 56. Ra8 {[%emt 0:00:03]} Kc5 {[%emt 0:00:00]} 57. Rc8+ {[%emt 0:00:09]} Kd4 {[%emt 0:00:00]} 58. Rd8+ {[%emt 0:00:02]} Ke4 {[%emt 0:00:00]} 59. Ra8 {[%emt 0:00:03]} h5 {[%emt 0:00:00]} 60. Ra4+ {[%emt 0:00:02]} Ke3 {[%emt 0:00:00]} 61. Ra3+ {[%emt 0:00:01]} Kd2 {[%emt 0:00:00]} 62. Ra6 {[%emt 0:00:11]} Kc3 {[%emt 0:00:00]} 63. Rc6+ {[%emt 0:00:02]} Kb4 {[%emt 0:00:00]} 64. Ra6 {[%emt 0:00:05]} Kc5 {[%emt 0:00:00]} 65. Ra8 {[%emt 0:00:03]} Kd5 {[%emt 0:00:00]} 66. Rd8+ {[%emt 0:00:05]} Ke4 {[%emt 0:00:00]} 67. Ra8 {[%emt 0:00:04]} Kd5 {[%emt 0:00:00]} 68. Rd8+ {[%emt 0:01:37]} Kc6 {[%emt 0:00:00]} 69. Ra8 {[%emt 0:00:02]} Kd6 {[%emt 0:00:00]} 70. Rd8+ {[%emt 0:00:01]} Kc6 {[%emt 0:00:00]} 71. Ra8 {[%emt 0:00:02]} Kd7 {[%emt 0:00:00]} 72. Ra7+ {[%emt 0:00:05]} Kd6 {[%emt 0:00:00]} 73. Ra8 {[%emt 0:00:02]} Ke7 {[%emt 0:00:00]} 74. Ra7+ {[%emt 0:00:14]} Kf6 {[%emt 0:00:00]} 75. Ra8 {[%emt 0:00:01]} Kg6 {[%emt 0:00:00]} 76. Rg8+ {[%emt 0:00:24]} Kh7 {[%emt 0:00:01]} 77. Ra8 {[%emt 0:00:03]} h4 {[%emt 0:00:28]} 78. gxh4 {[%emt 0:01:57]} Kg6 {[%emt 0:00:07]} 79. Ra4 {[%emt 0:05:10]} Kh5 {[%emt 0:00:06]} 80. Ra8 {[%emt 0:00:22]} Kxh4 {[%emt 0:00:07]} 81. Ra7 {[%emt 0:00:02]} Kg4 {[%emt 0:00:02]} 82. Ra4 {[%emt 0:00:01]} Kh4 {[%emt 0:00:06]} 83. Kh2 {[%emt 0:00:01]} Rf1 {[%emt 0:01:02]} 84. Rxa2 {[%emt 0:00:04]} Rxf4 {[%emt 0:00:02]} 85. Kg2 {[%emt 0:00:05]} Rg4+ {[%emt 0:00:05]} 86. Kf2 {[%emt 0:00:04]} Kg5 {[%emt 0:00:09]} 87. Ra6 {[%emt 0:00:07]} e5 {[%emt 0:00:09]} 88. Re6 {[%emt 0:00:07]} Kf4 {[%emt 0:00:03]} 89. Ra6 {[%emt 0:00:13]} e4 {[%emt 0:00:03]} 90. Ra3 {[%emt 0:00:09]} Rh4 {[%emt 0:00:05]} 91. Kg2 {[%emt 0:00:12]} Rg4+ {[%emt 0:00:06]} 92. Kf2 {[%emt 0:00:01]} e3+ {[%emt 0:00:30]} 93. Kf1 {[%emt 0:00:33]} Kf3 {[%emt 0:00:02]} 94. Rb3 {[%emt 0:00:10]} f4 {[%emt 0:00:04]} 95. Ra3 {[%emt 0:00:13]} Rg5 {[%emt 0:00:01]} 96. Rb3 {[%emt 0:00:14]} Rc5 {[%emt 0:00:04]} 97. Rb1 {[%emt 0:00:05]} Rc3 {[%emt 0:00:09]} 98. Ra1 {[%emt 0:00:15]} Kg3 {[%emt 0:00:06]} 99. Rb1 {[%emt 0:00:10]} f3 {[%emt 0:00:04]} 100. Ra1 {[%emt 0:00:06]} Rd3 {[%emt 0:00:22]} 101. Ke1 {[%emt 0:00:19]} e2 {[%emt 0:00:09]} 102. Rb1 {[%emt 0:00:22]} Rd1+ {[%emt 0:00:02]} 0-1

[Event "11th LCC Rapid 2019"]
[Site "London"]
[Date "2019.12.07"]
[Round "4.29"]
[White "Rosario, Paulo Rbd"]
[Black "Sandhu, Manvith"]
[Result "1-0"]
[WhiteElo "1767"]
[BlackElo "1673"]
[PlyCount "103"]
[EventDate "2019.12.08"]
[EventType "swiss"]
[EventCountry "ENG"]
[TimeControl "15+10"]
[WhiteClock "0:00:11"]
[BlackClock "0:01:04"]

1. d4 {[%emt 0:00:00]} d5 {[%emt 0:00:00]} 2. c4 {[%emt 0:00:00]} c6 {[%emt 0:00:00]} 3. Nf3 {[%emt 0:00:00]} Nf6 {[%emt 0:00:00]} 4. Nc3 {[%emt 0:00:00]} e6 {[%emt 0:00:00]} 5. Bg5 {[%emt 0:00:00]} h6 {[%emt 0:00:00]} 6. Bh4 {[%emt 0:00:00]} dxc4 {[%emt 0:00:00]} 7. e4 {[%emt 0:00:00]} g5 {[%emt 0:00:00]} 8. Bg3 {[%emt 0:00:00]} b5 {[%emt 0:00:00]} 9. e5 {[%emt 0:00:00]} Nd5 {[%emt 0:00:00]} 10. Nd2 {[%emt 0:00:00]} Bb4 {[%emt 0:01:23]} 11. Nde4 {[%emt 0:00:00]} Nd7 {[%emt 0:00:00]} 12. a3 {[%emt 0:00:00]} Be7 {[%emt 0:00:00]} 13. Be2 {[%emt 0:00:00]} Bb7 {[%emt 0:00:00]} 14. O-O {[%emt 0:00:00]} a6 {[%emt 0:00:00]} 15. Bh5 {[%emt 0:00:00]} Nf8 {[%emt 0:00:00]} 16. f4 {[%emt 0:00:00]} Ne3 {[%emt 0:00:00]} 17. Bxf7+ {[%emt 0:00:00]} Kxf7 {[%emt 0:00:00]} 18. Qh5+ {[%emt 0:00:00]} Kg7 {[%emt 0:00:00]} 19. Rf3 {[%emt 0:00:34]} Nf5 {[%emt 0:00:00]} 20. Bf2 {[%emt 0:01:15]} Qe8 {[%emt 0:00:00]} 21. Qh3 {[%emt 0:00:40]} Qg6 {[%emt 0:00:00]} 22. g4 {[%emt 0:00:13]} Nh4 {[%emt 0:00:00]} 23. f5 {[%emt 0:00:36]} Nxf3+ {[%emt 0:00:00]} 24. Qxf3 {[%emt 0:00:00]} Qf7 {[%emt 0:00:00]} 25. f6+ {[%emt 0:00:04]} Kg8 {[%emt 0:00:00]} 26. Qe2 {[%emt 0:00:20]} Bd8 {[%emt 0:00:00]} 27. Nd6 {[%emt 0:00:02]} Qd7 {[%emt 0:00:00]} 28. Qe4 {[%emt 0:00:12]} Rb8 {[%emt 0:00:48]} 29. f7+ {[%emt 0:00:08]} Kg7 {[%emt 0:00:08]} 30. Rf1 {[%emt 0:00:04]} c5 {[%emt 0:00:19]} 31. d5 {[%emt 0:00:22]} exd5 {[%emt 0:00:24]} 32. Nxd5 {[%emt 0:00:04]} Bxd5 {[%emt 0:00:39]} 33. Qxd5 {[%emt 0:00:03]} Qxg4+ {[%emt 0:00:02]} 34. Kh1 {[%emt 0:00:13]} Qe6 {[%emt 0:00:04]} 35. Qxc5 {[%emt 0:00:18]} Be7 {[%emt 0:00:44]} 36. Bd4 {[%emt 0:00:16]} Bxd6 {[%emt 0:00:33]} 37. exd6+ {[%emt 0:00:02]} Kh7 {[%emt 0:00:05]} 38. Bxh8 {[%emt 0:00:18]} Qe4+ {[%emt 0:00:03]} 39. Kg1 {[%emt 0:00:04]} Kxh8 {[%emt 0:00:22]} 40. Qc7 {[%emt 0:00:37]} Qg4+ {[%emt 0:01:00]} 41. Kh1 {[%emt 0:00:06]} Qc8 {[%emt 0:00:08]} 42. Qe7 {[%emt 0:00:03]} Qb7+ {[%emt 0:00:03]} 43. Kg1 {[%emt 0:00:06]} Qb6+ {[%emt 0:00:19]} 44. Kh1 {[%emt 0:00:07]} Qc6+ {[%emt 0:00:06]} 45. Kg1 {[%emt 0:00:02]} Qc5+ {[%emt 0:00:24]} 46. Rf2 {[%emt 0:00:22]} Qd4 {[%emt 0:00:07]} 47. d7 {[%emt 0:00:11]} Qd1+ {[%emt 0:00:10]} 48. Kg2 {[%emt 0:00:09]} Qg4+ {[%emt 0:00:04]} 49. Kh1 {[%emt 0:00:06]} Qe6 {[%emt 0:00:11]} 50. Qxe6 {[%emt 0:00:09]} Nxe6 {[%emt 0:00:01]} 51. Re2 {[%emt 0:00:02]} Nf8 {[%emt 0:00:27]} 52. Re8 {[%emt 0:00:03]} 1-0

[Event "11th LCC Rapid 2019"]
[Site "London"]
[Date "2019.12.07"]
[Round "6.1"]
[White "Gordon, Stephen J"]
[Black "Haydon, David L"]
[Result "1-0"]
[WhiteElo "2495"]
[BlackElo "2294"]
[PlyCount "121"]
[EventDate "2019.12.08"]
[EventType "swiss"]
[EventCountry "ENG"]
[TimeControl "15+10"]
[WhiteClock "0:00:36"]
[BlackClock "0:00:38"]

1. c4 {[%emt 0:00:00]} c6 {[%emt 0:00:00]} 2. Nf3 {[%emt 0:00:00]} Nf6 {[%emt 0:00:00]} 3. Nc3 {[%emt 0:00:00]} d5 {[%emt 0:00:00]} 4. d4 {[%emt 0:00:00]} e6 {[%emt 0:00:00]} 5. Bg5 {[%emt 0:00:00]} Nbd7 {[%emt 0:00:00]} 6. e3 {[%emt 0:00:00]} Be7 {[%emt 0:00:00]} 7. Bd3 {[%emt 0:00:00]} a5 {[%emt 0:00:00]} 8. O-O {[%emt 0:00:00]} O-O {[%emt 0:00:00]} 9. Qc2 {[%emt 0:00:00]} h6 {[%emt 0:00:00]} 10. Bh4 {[%emt 0:00:00]} b6 {[%emt 0:00:00]} 11. cxd5 {[%emt 0:00:00]} exd5 {[%emt 0:00:00]} 12. e4 {[%emt 0:00:00]} dxe4 {[%emt 0:00:00]} 13. Nxe4 {[%emt 0:00:00]} Bb7 {[%emt 0:00:00]} 14. Rfe1 {[%emt 0:00:00]} Nxe4 {[%emt 0:00:00]} 15. Bxe7 {[%emt 0:00:00]} Qxe7 {[%emt 0:00:00]} 16. Bxe4 {[%emt 0:00:00]} Qd6 {[%emt 0:00:00]} 17. Ne5 {[%emt 0:00:00]} Nf6 {[%emt 0:00:00]} 18. Bf3 {[%emt 0:00:00]} Rac8 {[%emt 0:00:00]} 19. Rad1 {[%emt 0:00:00]} Qc7 {[%emt 0:00:00]} 20. Qb3 {[%emt 0:00:00]} Rfd8 {[%emt 0:01:24]} 21. Rc1 {[%emt 0:00:00]} Rd6 {[%emt 0:00:01]} 22. Nc4 {[%emt 0:00:15]} Rxd4 {[%emt 0:00:03]} 23. Qxb6 {[%emt 0:00:02]} Qxb6 {[%emt 0:00:11]} 24. Nxb6 {[%emt 0:00:02]} Rb4 {[%emt 0:00:03]} 25. Nxc8 {[%emt 0:00:01]} Bxc8 {[%emt 0:00:07]} 26. Rxc6 {[%emt 0:00:08]} Be6 {[%emt 0:00:02]} 27. b3 {[%emt 0:01:34]} a4 {[%emt 0:00:02]} 28. Rc3 {[%emt 0:00:52]} axb3 {[%emt 0:00:06]} 29. axb3 {[%emt 0:00:01]} Rxb3 {[%emt 0:00:09]} 30. Rxb3 {[%emt 0:00:02]} Bxb3 {[%emt 0:00:02]} 31. h4 {[%emt 0:00:05]} g6 {[%emt 0:00:12]} 32. g3 {[%emt 0:00:07]} Be6 {[%emt 0:00:04]} 33. Bc6 {[%emt 0:00:04]} Kg7 {[%emt 0:00:02]} 34. Re5 {[%emt 0:00:06]} Ng4 {[%emt 0:00:05]} 35. Rc5 {[%emt 0:00:02]} Nf6 {[%emt 0:00:02]} 36. Kg2 {[%emt 0:00:04]} Kf8 {[%emt 0:00:03]} 37. Kf3 {[%emt 0:00:07]} Bg4+ {[%emt 0:00:19]} 38. Kf4 {[%emt 0:00:10]} Be6 {[%emt 0:00:03]} 39. Bb5 {[%emt 0:00:23]} Ke7 {[%emt 0:00:38]} 40. Rc1 {[%emt 0:00:17]} g5+ {[%emt 0:00:15]} 41. hxg5 {[%emt 0:00:11]} hxg5+ {[%emt 0:00:02]} 42. Kf3 {[%emt 0:00:46]} Bd5+ {[%emt 0:00:27]} 43. Ke3 {[%emt 0:00:06]} Ng4+ {[%emt 0:00:28]} 44. Kd4 {[%emt 0:00:32]} Be6 {[%emt 0:00:19]} 45. Rc2 {[%emt 0:00:10]} Kf6 {[%emt 0:00:16]} 46. Bf1 {[%emt 0:00:11]} Ne5 {[%emt 0:00:14]} 47. Bg2 {[%emt 0:00:02]} Ng6 {[%emt 0:00:36]} 48. Rc5 {[%emt 0:00:08]} Ne7 {[%emt 0:00:04]} 49. Be4 {[%emt 0:00:06]} Ba2 {[%emt 0:00:17]} 50. Ra5 {[%emt 0:00:12]} Be6 {[%emt 0:00:02]} 51. Ra6 {[%emt 0:00:04]} Kg7 {[%emt 0:01:16]} 52. Ke5 {[%emt 0:00:02]} Bb3 {[%emt 0:00:15]} 53. Ra7 {[%emt 0:00:09]} Ng8 {[%emt 0:00:01]} 54. Bd5 {[%emt 0:00:57]} Bxd5 {[%emt 0:00:02]} 55. Kxd5 {[%emt 0:00:01]} Nf6+ {[%emt 0:00:02]} 56. Ke5 {[%emt 0:00:46]} Ng4+ {[%emt 0:00:01]} 57. Kf5 {[%emt 0:00:02]} Nxf2 {[%emt 0:00:02]} 58. Rd7 {[%emt 0:00:03]} Nh1 {[%emt 0:00:17]} 59. Rd3 {[%emt 0:00:33]} g4 {[%emt 0:00:02]} 60. Kf4 {[%emt 0:00:23]} Nf2 {[%emt 0:01:03]} 61. Rd2 {[%emt 0:00:01]} 1-0

[Event "11th LCC Rapid 2019"]
[Site "London"]
[Date "2019.12.07"]
[Round "6.2"]
[White "Hebden, Mark L"]
[Black "Johnson, Daniel"]
[Result "1/2-1/2"]
[WhiteElo "2433"]
[BlackElo "2144"]
[Annotator "RC"]
[PlyCount "171"]
[EventDate "2019.12.08"]
[EventType "swiss"]
[EventCountry "ENG"]
[TimeControl "15+10"]
[WhiteClock "0:02:45"]
[BlackClock "0:06:04"]

1. d4 {[%emt 0:00:00]} Nf6 {[%emt 0:00:00]} 2. Nc3 {[%emt 0:00:00]} d5 {[%emt 0:00:00]} 3. Bf4 {[%emt 0:00:00]} c5 {[%emt 0:00:00]} 4. e3 {[%emt 0:00:00]} e6 {[%emt 0:00:00]} 5. Nb5 {[%emt 0:00:00]} Na6 {[%emt 0:00:00]} 6. c3 {[%emt 0:00:00]} Be7 {[%emt 0:00:00]} 7. a4 {[%emt 0:00:00]} O-O {[%emt 0:00:00]} 8. h3 {[%emt 0:00:00]} Bd7 {[%emt 0:00:00]} 9. Nf3 {[%emt 0:00:00]} c4 {[%emt 0:00:00]} 10. Be2 {[%emt 0:00:00]} Bxb5 {[%emt 0:00:00]} 11. axb5 {[%emt 0:00:00]} Nc7 {[%emt 0:00:00]} 12. Qa4 {[%emt 0:00:00]} a6 {[%emt 0:00:00]} 13. b6 {[%emt 0:00:00]} Nb5 {[%emt 0:00:00]} 14. Qa5 {[%emt 0:00:00]} Nd7 {[%emt 0:00:00]} 15. e4 {[%emt 0:00:00]} Qxb6 {[%emt 0:00:00]} 16. exd5 {[%emt 0:00:00]} Qxa5 {[%emt 0:00:00]} 17. Rxa5 {[%emt 0:00:00]} exd5 {[%emt 0:00:00]} 18. Kd2 {[%emt 0:00:00]} Nf6 {[%emt 0:00:00]} 19. Rha1 {[%emt 0:00:00]} Rac8 {[%emt 0:00:00]} 20. Ke1 {[%emt 0:00:00]} Rfe8 {[%emt 0:00:00]} 21. Kf1 {[%emt 0:00:00]} Bd8 {[%emt 0:00:00]} 22. R5a2 {[%emt 0:00:00]} Bc7 {[%emt 0:00:40]} 23. Bxc7 {[%emt 0:00:00]} Rxc7 {[%emt 0:00:12]} 24. Ne5 {[%emt 0:00:00]} Nd7 {[%emt 0:00:24]} 25. f4 {[%emt 0:00:00]} f6 {[%emt 0:00:16]} 26. Ng4 {[%emt 0:00:00]} Nd6 {[%emt 0:00:39]} 27. Bf3 {[%emt 0:00:00]} Ne4 {[%emt 0:01:01]} 28. Bxe4 {[%emt 0:00:00]} Rxe4 {[%emt 0:00:29]} 29. g3 {[%emt 0:00:00]} Nb6 {[%emt 0:00:27]} 30. Re1 {[%emt 0:00:00]} Rce7 {[%emt 0:00:16]} 31. Rxe4 {[%emt 0:00:00]} Rxe4 {[%emt 0:00:09]} 32. Ra5 {[%emt 0:00:00]} h5 {[%emt 0:00:24]} 33. Nf2 {[%emt 0:00:06]} Re3 {[%emt 0:00:03]} 34. g4 {[%emt 0:00:21]} hxg4 {[%emt 0:00:14]} 35. hxg4 {[%emt 0:00:00]} Kf7 {[%emt 0:00:36]} 36. Rc5 {[%emt 0:00:00]} Re7 {[%emt 0:00:12]} 37. Nd1 {[%emt 0:00:08]} Ke6 {[%emt 0:00:08]} 38. Ne3 {[%emt 0:00:15]} g6 {[%emt 0:00:06]} 39. Kf2 {[%emt 0:00:13]} f5 {[%emt 0:00:01]} 40. gxf5+ {[%emt 0:00:15]} gxf5 {[%emt 0:00:01]} 41. Ra5 {[%emt 0:00:08]} Rh7 {[%emt 0:00:08]} 42. Ra1 {[%emt 0:00:13]} Rh2+ {[%emt 0:00:08]} 43. Ng2 {[%emt 0:00:00]} Nd7 {[%emt 0:00:25]} 44. Re1+ {[%emt 0:00:00]} Kd6 {[%emt 0:00:08]} 45. Kg3 {[%emt 0:00:02]} Rh5 {[%emt 0:00:05]} 46. Nh4 {[%emt 0:00:45]} a5 {[%emt 0:00:19]} 47. Nf3 {[%emt 0:01:27]} Nf6 {[%emt 0:00:14]} 48. Re5 {[%emt 0:00:07]} Ne4+ {[%emt 0:00:10]} 49. Kg2 {[%emt 0:00:01]} b5 {[%emt 0:00:17]} 50. Re8 {[%emt 0:00:35]} b4 {[%emt 0:00:05]} 51. Rd8+ {[%emt 0:00:33]} Ke6 {[%emt 0:00:01]} 52. Re8+ {[%emt 0:00:59]} Kd6 {[%emt 0:00:05]} 53. Rd8+ {[%emt 0:00:05]} Ke6 {[%emt 0:00:18]} 54. Re8+ {[%emt 0:00:01]} Kd6 {[%emt 0:00:02]} 55. cxb4 {[%emt 0:00:24]} axb4 {[%emt 0:00:01]} 56. Rb8 {[%emt 0:00:02]} c3 {[%emt 0:00:09]} 57. bxc3 {[%emt 0:00:07]} bxc3 {[%emt 0:00:01]} 58. Rc8 {[%emt 0:00:11]} Rh7 {[%emt 0:00:16]} 59. Ne5 {[%emt 0:00:15]} Rc7 {[%emt 0:00:38]} 60. Rd8+ {[%emt 0:00:01]} Ke7 {[%emt 0:00:13]} 61. Rxd5 {[%emt 0:00:14]} c2 {[%emt 0:00:05]} 62. Nd3 {[%emt 0:00:02]} c1=Q {[%emt 0:00:15]} 63. Nxc1 {[%emt 0:00:04]} Rxc1 {[%emt 0:00:09]} 64. Rxf5 {[%emt 0:00:04]} Nf6 {[%emt 0:00:07]} 65. Re5+ {[%emt 0:00:10]} Kd6 {[%emt 0:00:01]} 66. f5 {[%emt 0:00:09]} Rd1 {[%emt 0:00:25]} 67. Re6+ {[%emt 0:00:03]} Kd7 {[%emt 0:00:00]} 68. Rxf6 {[%emt 0:00:04]} Rxd4 {[%emt 0:00:02]} 69. Kf3 {[%emt 0:00:01]} Ke7 {[%emt 0:00:02]} 70. Rg6 {[%emt 0:00:08]} Kf7 {[%emt 0:00:01]} 71. Rg4 {[%emt 0:00:07]} Rxg4 {[%emt 0:00:15]} 72. Kxg4 {[%emt 0:00:01]} Kf6 {[%emt 0:00:01]} 73. Kf4 {[%emt 0:00:01]} Kf7 {[%emt 0:00:01]} 74. Ke4 {[%emt 0:00:01]} Kf6 {[%emt 0:00:03]} 75. Kf4 {[%emt 0:00:00]} Kf7 {[%emt 0:00:01]} 76. Ke5 {[%emt 0:00:00]} Ke7 {[%emt 0:00:01]} 77. Ke4 {[%emt 0:00:02]} Kf6 {[%emt 0:00:02]} 78. Kf4 {[%emt 0:00:00]} Kf7 {[%emt 0:00:01]} 79. Kg5 {[%emt 0:00:01]} Kg7 {[%emt 0:00:01]} 80. f6+ {[%emt 0:00:00]} Kf7 {[%emt 0:00:01]} 81. Kf5 {[%emt 0:00:00]} Kf8 {[%emt 0:00:01]} 82. Ke5 {[%emt 0:00:03]} Kf7 {[%emt 0:00:01]} 83. Kf5 {[%emt 0:00:01]} Kf8 {[%emt 0:00:01]} 84. Kg6 {[%emt 0:00:00]} Kg8 {[%emt 0:00:01]} 85. f7+ {[%emt 0:00:01]} Kf8 {[%emt 0:00:01]} 86. Kf6 {[%emt 0:00:00]} 1/2-1/2